{"text_format":"3","workbook":"xlsx","n_sheets":1,"sheets":["Лист1"],"not_rendered":{"external_links":6},"read":"whole","date_system":"1900"}

{"sheet":"Лист1","index":0,"n_rows":81,"n_cols":17,"rows_kept":81}
["№","СНИЛС","Фамлия","Имя","Отчество","Пол","Дата рождения","Участник с ОВЗ","Класс","Класс участия","Балл","Макс. Балл","Статус","Призер МЭ прошлого года","Учитель","Место работы учителя","Направление, вид практики  по технологии"]
[1,17520052434,"Алексеев","Кирилл","Викторович","м","2012-12-26","нет",4,4,53,60,"победитель","призер","Аменова Эльмира Зуфаровна","Мунципальное общеобразовательное учереждение Гимназия №22 г. Нижнекамск РеспубликиТатарстан"]
[2,18003052208,"Калачева ","Дарина","Кирилловна","ж","2014-01-22","нет",4,4,50,60,"призер",null,"Егорова Ландыш Масгутовна","Мунципальное общеобразовательное учереждение Гимназия №22 г. Нижнекамск РеспубликиТатарстан"]
[3,17570673092,"Кузьмина ","Валентина","Андреевна","ж","2013-02-14","нет",4,4,40,60,{"$f":"$M$5","v":"участник"},null,"Егорова Ландыш Масгутовна","Мунципальное общеобразовательное учереждение Гимназия №22 г. Нижнекамск РеспубликиТатарстан"]
[4,17626298907,"Чернов","Рамазан","Фанусович","м","2013-04-09","нет",4,4,40,60,{"$f":"$M$63","v":"участник"},null,"Аменова Эльмира Зуфаровна","Мунципальное общеобразовательное учереждение Гимназия №22 г. Нижнекамск РеспубликиТатарстан"]
[5,18001098525,"Адгамова ","Аида","Викторовна","ж","2014-01-15","нет",4,4,28,60,"участник",null,"Аменова Эльмира Зуфаровна","Мунципальное общеобразовательное учереждение Гимназия №22 г. Нижнекамск РеспубликиТатарстан"]
[6,17647326297,"Гришин","Денис","Алексеевич","м","2013-04-21","нет",4,4,27,60,"участник",null,"Аменова Эльмира Зуфаровна","Мунципальное общеобразовательное учереждение Гимназия №22 г. Нижнекамск РеспубликиТатарстан"]
[7,17697598461,"Гараев ","Роман ","Денисович","м","2013-05-14","нет",4,4,27,60,"участник",null,"Егорова Ландыш Масгутовна","Мунципальное общеобразовательное учереждение Гимназия №22 г. Нижнекамск РеспубликиТатарстан"]
[8,17446516283,"Никитин","Артем","Рамилевич","м","2012-11-13","нет",4,4,27,60,"участник",null,"Аменова Эльмира Зуфаровна","Мунципальное общеобразовательное учереждение Гимназия №22 г. Нижнекамск РеспубликиТатарстан"]
[9,17792378934,"Куляева","Виктория","Васильевна","ж","2013-08-01","нет",4,4,25,60,"участник",null,"Аменова Эльмира Зуфаровна","Мунципальное общеобразовательное учереждение Гимназия №22 г. Нижнекамск РеспубликиТатарстан"]
[10,17758925135,"Ярулин ","Карим","Рамилевич","м","2013-07-13","нет",4,4,25,60,"участник",null,{"$f":"$O$13","v":"Егорова Ландыш Масгутовна"},"Мунципальное общеобразовательное учереждение Гимназия №22 г. Нижнекамск РеспубликиТатарстан"]
[11,17792230296,"Ибрагимов ","Рузиль","Ильнурович","м","2013-08-09","нет",4,4,24,60,"участник",null,"Аменова Эльмира Зуфаровна","Мунципальное общеобразовательное учереждение Гимназия №22 г. Нижнекамск РеспубликиТатарстан"]
[12,17752243685,"Халиуллина ","Ралина ","Фанилевна","ж","2013-07-04","нет",4,4,23,60,"участник",null,"Егорова Ландыш Масгутовна","Мунципальное общеобразовательное учереждение Гимназия №22 г. Нижнекамск РеспубликиТатарстан"]
[13,17746646923,"Константинова","Каролина","Артемовна","ж","2013-07-12","нет",4,4,20,60,"участник",null,"Аменова Эльмира Зуфаровна","Мунципальное общеобразовательное учереждение Гимназия №22 г. Нижнекамск РеспубликиТатарстан"]
[14,17815145582,"Яковлева ","Алиса","Вадимовна","ж","2013-09-01","нет",4,4,20,60,"участник",null,"Аменова Эльмира Зуфаровна","Мунципальное общеобразовательное учереждение Гимназия №22 г. Нижнекамск РеспубликиТатарстан"]
[15,17487112793,"Галиуллин","Газинур","Марселевич","м","2012-12-11","нет",4,4,20,60,"участник",null,"Аменова Эльмира Зуфаровна","Мунципальное общеобразовательное учереждение Гимназия №22 г. Нижнекамск РеспубликиТатарстан"]
[16,17556087097,"Абдурахманова","Ильнара","Маратовна","ж","2013-02-02","нет",4,4,19,60,"участник",null,"Аменова Эльмира Зуфаровна","Мунципальное общеобразовательное учереждение Гимназия №22 г. Нижнекамск РеспубликиТатарстан"]
[17,17565349304,"Гусинникова","Аделина ","Алмазовна","ж","2013-02-06","нет",4,4,19,60,"участник",null,"Егорова Ландыш Масхутовна","Мунципальное общеобразовательное учереждение Гимназия №22 г. Нижнекамск РеспубликиТатарстан"]
[18,17884263019,"Зубаирова","Эмилия ","Ринатовна","ж","2013-10-29","нет",4,4,19,60,"участник",null,"Егорова Ландыш Масхутовна","Мунципальное общеобразовательное учереждение Гимназия №22 г. Нижнекамск РеспубликиТатарстан"]
[19,17956771643,"Муртазина","Радмила","Рамилевна","ж","2013-12-16","нет",4,4,17,60,"участник",null,"Егорова Ландыш Масхутовна","Мунципальное общеобразовательное учереждение Гимназия №22 г. Нижнекамск РеспубликиТатарстан"]
[20,17829077314,"Нигматуллин","Карим","Эмильевич","м","2013-09-10","нет",4,4,16,60,"участник",null,"Егорова Ландыш Масхутовна","Мунципальное общеобразовательное учереждение Гимназия №22 г. Нижнекамск РеспубликиТатарстан"]
[21,"17462934899","Чеснокова","Злата","Андреевна","ж","14.11.2012","нет",5,5,68,76,"победитель","призер",{"$f":"[1]Лист1!O3","v":"Калимуллина Эльмира Фаритовна"},"Мунципальное общеобразовательное учереждение Гимназия №22 г. Нижнекамск РеспубликиТатарстан"]
[22,"17354141457","Капаева","Самина","Ильназовна","ж","02.09.2012","нет",5,5,60,76,"участник",null,{"$f":"[1]Лист1!O4","v":"Егорова Ландыш Масгутовна"},"Мунципальное общеобразовательное учереждение Гимназия №22 г. Нижнекамск РеспубликиТатарстан"]
[23,17114058735,"Сидулина","Кира","Альбертовна","ж","2012-03-15","нет",5,5,55,76,"участник",null,{"$f":"[1]Лист1!O5","v":"Егорова Ландыш Масгутовна"},"Мунципальное общеобразовательное учереждение Гимназия №22 г. Нижнекамск РеспубликиТатарстан"]
[24,"17362833280","Удирякова ","Анастасия","Николаевна","ж","26.08.2012","нет",5,5,50,76,"участник",null,{"$f":"[1]Лист1!O6","v":"Калимуллина Эльмира Фаритовна"},"Мунципальное общеобразовательное учереждение Гимназия №22 г. Нижнекамск РеспубликиТатарстан"]
[25,"17441527566","Мурзалиева ","Виктория","Антоновна","ж","19.10.2012","нет",5,5,50,76,"участник",null,{"$f":"[1]Лист1!O7","v":"Калимуллина Эльмира Фаритовна"},"Мунципальное общеобразовательное учереждение Гимназия №22 г. Нижнекамск РеспубликиТатарстан"]
[26,"17354137264","Дука ","София","Александровна","ж","31.08.2012","нет",5,5,48,76,"участник",null,{"$f":"[1]Лист1!O8","v":"Калимуллина Эльмира Фаритовна"},"Мунципальное общеобразовательное учереждение Гимназия №22 г. Нижнекамск РеспубликиТатарстан"]
[27,"17354136969","Обшарова","София","Максимовна","ж","26.08.2012","нет",5,5,44,76,"участник",null,{"$f":"[1]Лист1!O9","v":"Калимуллина Эльмира Фаритовна"},"Мунципальное общеобразовательное учереждение Гимназия №22 г. Нижнекамск РеспубликиТатарстан"]
[28,"17298854329","Михеева ","Ольга ","Владимировна","ж","15.07.2012","нет",5,5,42,76,"участник",null,{"$f":"[1]Лист1!O10","v":"Мухлисуллина Гульчачак Насимовна"},"Мунципальное общеобразовательное учереждение Гимназия №22 г. Нижнекамск РеспубликиТатарстан"]
[29,"17234134946","Тукеев","Егор","Дмитриевич","м","31.05.2012","нет",5,5,42,76,"участник",null,{"$f":"[1]Лист1!O11","v":"Мухлисуллина Гульчачак Насимовна"},"Мунципальное общеобразовательное учереждение Гимназия №22 г. Нижнекамск РеспубликиТатарстан"]
[30,"17395858329","Гущин","Матвей","Александрович","м","27.09.2012","нет",5,5,40,76,"участник",null,{"$f":"[1]Лист1!O12","v":"Калимуллина Эльмира Фаритовна"},"Мунципальное общеобразовательное учереждение Гимназия №22 г. Нижнекамск РеспубликиТатарстан"]
[31,16431076949,{"$f":"[2]Лист1!C3","v":"Леонтьева"},{"$f":"[2]Лист1!D3","v":"Алина"},{"$f":"[2]Лист1!E3","v":"Сергеевна"},{"$f":"[2]Лист1!F3","v":"ж"},"24.01.2011","нет",6,6,{"$f":"[2]Лист1!K3","v":35},66,"участник",null,{"$f":"[2]Лист1!O3","v":"Сайделова Фарсия Вазиховна"},"Мунципальное общеобразовательное учереждение Гимназия №22 г. Нижнекамск РеспубликиТатарстан"]
[32,16491651791,{"$f":"[2]Лист1!C4","v":"Лукоянова "},{"$f":"[2]Лист1!D4","v":"Эвелина"},{"$f":"[2]Лист1!E4","v":"Алексеевна"},{"$f":"[2]Лист1!F4","v":"ж"},"20.03.2011","нет",6,6,{"$f":"[2]Лист1!K4","v":32},66,"участник",null,{"$f":"[2]Лист1!O4","v":"Сайделова Фарсия Вазиховна"},"Мунципальное общеобразовательное учереждение Гимназия №22 г. Нижнекамск РеспубликиТатарстан"]
[33,16603944372,{"$f":"[2]Лист1!C5","v":"Арсентьева "},{"$f":"[2]Лист1!D5","v":"Снежана"},{"$f":"[2]Лист1!E5","v":"Владиславовна"},{"$f":"[2]Лист1!F5","v":"ж"},"06.05.2011","нет",6,6,{"$f":"[2]Лист1!K5","v":30},66,"участник",null,{"$f":"[2]Лист1!O5","v":"Сайделова Фарсия Вазиховна"},"Мунципальное общеобразовательное учереждение Гимназия №22 г. Нижнекамск РеспубликиТатарстан"]
[34,16748451203,{"$f":"[2]Лист1!C6","v":"Федосеев"},{"$f":"[2]Лист1!D6","v":"Дмитрий"},{"$f":"[2]Лист1!E6","v":"Михайлович"},{"$f":"[2]Лист1!F6","v":"м"},"01.07.2011","нет",6,6,{"$f":"[2]Лист1!K6","v":29},66,"участник",null,{"$f":"[2]Лист1!O6","v":"Сайделова Фарсия Вазиховна"},"Мунципальное общеобразовательное учереждение Гимназия №22 г. Нижнекамск РеспубликиТатарстан"]
[35,16448078691,{"$f":"[2]Лист1!C7","v":"Тиунов"},{"$f":"[2]Лист1!D7","v":"Богдан "},{"$f":"[2]Лист1!E7","v":"Сергеевич"},{"$f":"[2]Лист1!F7","v":"м"},"17.01.2011","нет",6,6,{"$f":"[2]Лист1!K7","v":28.5},66,"участник",null,{"$f":"[2]Лист1!O7","v":"Сайделова Фарсия Вазиховна"},"Мунципальное общеобразовательное учереждение Гимназия №22 г. Нижнекамск РеспубликиТатарстан"]
[36,"16446884607",{"$f":"[2]Лист1!C8","v":"Зуева"},{"$f":"[2]Лист1!D8","v":"Полина"},{"$f":"[2]Лист1!E8","v":"Станиславовна"},{"$f":"[2]Лист1!F8","v":"ж"},"16.02.2011","нет",6,6,{"$f":"[2]Лист1!K8","v":27},66,{"$f":"$M$63","v":"участник"},null,{"$f":"[2]Лист1!O8","v":"Калимуллина Эльмира Фаритовна"},"Мунципальное общеобразовательное учереждение Гимназия №22 г. Нижнекамск РеспубликиТатарстан"]
[37,16626820078,{"$f":"[2]Лист1!C9","v":"Куляев "},{"$f":"[2]Лист1!D9","v":"Артём "},{"$f":"[2]Лист1!E9","v":"Васильевич"},{"$f":"[2]Лист1!F9","v":"м"},"20.05.2011","нет",6,6,{"$f":"[2]Лист1!K9","v":25},66,"участник",null,{"$f":"[2]Лист1!O9","v":"Калимуллина Эльмира Фаритовна"},"Мунципальное общеобразовательное учереждение Гимназия №22 г. Нижнекамск РеспубликиТатарстан"]
[38,"16358294393",{"$f":"[2]Лист1!C10","v":"Аверьянова "},{"$f":"[2]Лист1!D10","v":"Виктория"},{"$f":"[2]Лист1!E10","v":"Николаевна"},{"$f":"[2]Лист1!F10","v":"ж"},"04.01.2011","нет",6,6,{"$f":"[2]Лист1!K10","v":25},66,"участник",null,{"$f":"[2]Лист1!O10","v":"Калимуллина Эльмира Фаритовна"},"Мунципальное общеобразовательное учереждение Гимназия №22 г. Нижнекамск РеспубликиТатарстан"]
[39,"17340743762",{"$f":"[2]Лист1!C11","v":"Поздеев"},{"$f":"[2]Лист1!D11","v":"Даниил"},{"$f":"[2]Лист1!E11","v":"Дмитриевич"},{"$f":"[2]Лист1!F11","v":"м"},"19.08.2012","нет",6,6,{"$f":"[2]Лист1!K11","v":24},66,"участник",null,{"$f":"[2]Лист1!O11","v":"Аменова Эльмира Зуфаровна"},"Мунципальное общеобразовательное учереждение Гимназия №22 г. Нижнекамск РеспубликиТатарстан"]
[40,"17234134946",{"$f":"[2]Лист1!C12","v":"Тукеев"},"Егор",{"$f":"[2]Лист1!E12","v":"Дмитриевич"},{"$f":"[2]Лист1!F12","v":"м"},"31.05.2012","нет",6,6,{"$f":"[2]Лист1!K12","v":22},66,"участник",null,{"$f":"[2]Лист1!O12","v":"Аменова Эльмира Зуфаровна"},"Мунципальное общеобразовательное учереждение Гимназия №22 г. Нижнекамск РеспубликиТатарстан"]
[41,16013447827,"Борисова","Варвара",{"$f":"[3]Лист1!E3","v":"Владимировна"},{"$f":"[3]Лист1!F3","v":"ж"},"25.02.2010","нет",7,7,{"$f":"[3]Лист1!K3","v":35},75,"участник",null,{"$f":"[3]Лист1!O3","v":"Сайделова Фарсия Вазиховна"},"Мунципальное общеобразовательное учереждение Гимназия №22 г. Нижнекамск РеспубликиТатарстан"]
[42,16246366874,{"$f":"[3]Лист1!C4","v":"Агаев "},{"$f":"[3]Лист1!D4","v":"Всеволод "},{"$f":"[3]Лист1!E4","v":"Валерьевич"},{"$f":"[3]Лист1!F4","v":"м"},"08.10.2010","нет",7,7,{"$f":"[3]Лист1!K4","v":33},75,"участник",null,{"$f":"[3]Лист1!O4","v":"Сайделова Фарсия Вазиховна"},"Мунципальное общеобразовательное учереждение Гимназия №22 г. Нижнекамск РеспубликиТатарстан"]
[43,16266128769,{"$f":"[3]Лист1!C5","v":"Артамонов"},{"$f":"[3]Лист1!D5","v":"Данил "},{"$f":"[3]Лист1!E5","v":"Денисович"},{"$f":"[3]Лист1!F5","v":"м"},"04.07.2010","нет",7,7,{"$f":"[3]Лист1!K5","v":32.5},75,"участник",null,{"$f":"[3]Лист1!O5","v":"Сайделова Фарсия Вазиховна"},"Мунципальное общеобразовательное учереждение Гимназия №22 г. Нижнекамск РеспубликиТатарстан"]
[44,15841422968,{"$f":"[3]Лист1!C6","v":"Сорокина"},{"$f":"[3]Лист1!D6","v":"Кристина"},{"$f":"[3]Лист1!E6","v":"Александровна"},{"$f":"[3]Лист1!F6","v":"ж"},"15.02.2010","нет",7,7,{"$f":"[3]Лист1!K6","v":32.5},75,"участник",null,{"$f":"[3]Лист1!O6","v":"Калимуллина Эльмира Фаритовна"},"Мунципальное общеобразовательное учереждение Гимназия №22 г. Нижнекамск РеспубликиТатарстан"]
[45,16318633466,{"$f":"[3]Лист1!C7","v":"Ильина"},{"$f":"[3]Лист1!D7","v":"Ульяна"},{"$f":"[3]Лист1!E7","v":"Владимировна"},{"$f":"[3]Лист1!F7","v":"ж"},"14.11.2010","нет",7,7,{"$f":"[3]Лист1!K7","v":30},75,"участник",null,{"$f":"[3]Лист1!O7","v":"Калимуллина Эльмира Фаритовна"},"Мунципальное общеобразовательное учереждение Гимназия №22 г. Нижнекамск РеспубликиТатарстан"]
[46,16226517857,{"$f":"[3]Лист1!C8","v":"Блюмхен"},{"$f":"[3]Лист1!D8","v":"Ева"},{"$f":"[3]Лист1!E8","v":"Тимуровна"},{"$f":"[3]Лист1!F8","v":"ж"},"2010-09-09","нет",7,7,{"$f":"[3]Лист1!K8","v":28},75,"участник",null,{"$f":"[3]Лист1!O8","v":"Калимуллина Эльмира Фаритовна"},"Мунципальное общеобразовательное учереждение Гимназия №22 г. Нижнекамск РеспубликиТатарстан"]
[47,"16283471880",{"$f":"[3]Лист1!C9","v":"Дмитриева "},{"$f":"[3]Лист1!D9","v":"Дарина"},{"$f":"[3]Лист1!E9","v":"Дмитриевна"},{"$f":"[3]Лист1!F9","v":"ж"},"04.10.2010","нет",7,7,{"$f":"[3]Лист1!K9","v":28},75,"участник",null,{"$f":"[3]Лист1!O9","v":"Сайделова Фарсия Вазиховна"},"Мунципальное общеобразовательное учереждение Гимназия №22 г. Нижнекамск РеспубликиТатарстан"]
[48,15886869857,{"$f":"[3]Лист1!C10","v":"Макаров"},{"$f":"[3]Лист1!D10","v":".Данил"},{"$f":"[3]Лист1!E10","v":"Евгеньевич"},{"$f":"[3]Лист1!F10","v":"м"},"18.03.2010","нет",7,7,{"$f":"[3]Лист1!K10","v":26.5},75,"участник",null,{"$f":"[3]Лист1!O10","v":"Сайделова Фарсия Вазиховна"},"Мунципальное общеобразовательное учереждение Гимназия №22 г. Нижнекамск РеспубликиТатарстан"]
[49,15562854084,{"$f":"[4]Лист1!C2","v":"Топоров"},{"$f":"[4]Лист1!D2","v":"Алексей"},{"$f":"[4]Лист1!E2","v":"Евгеньевич"},{"$f":"[4]Лист1!F2","v":"м"},"29.06.2009","нет",8,8,{"$f":"[4]Лист1!K2","v":42},80,"призер",null,{"$f":"$O$40","v":"Аменова Эльмира Зуфаровна"},"Мунципальное общеобразовательное учереждение Гимназия №22 г. Нижнекамск РеспубликиТатарстан"]
[50,15735210152,{"$f":"[4]Лист1!C3","v":"Сыннова"},{"$f":"[4]Лист1!D3","v":"Алина"},{"$f":"[4]Лист1!E3","v":"Ринатовна"},{"$f":"[4]Лист1!F3","v":"ж"},"16.03.2009","нет",8,8,{"$f":"[4]Лист1!K3","v":40},80,"участник",null,"Аменова Эльмира Зуфаровна","Мунципальное общеобразовательное учереждение Гимназия №22 г. Нижнекамск РеспубликиТатарстан"]
[51,15318993387,{"$f":"[4]Лист1!C4","v":"Суханова "},{"$f":"[4]Лист1!D4","v":"Эвелина"},{"$f":"[4]Лист1!E4","v":"Радиковна"},{"$f":"[4]Лист1!F4","v":"ж"},"09.12.2008","нет",8,8,{"$f":"[4]Лист1!K4","v":35},80,"участник",null,"Аменова Эльмира Зуфаровна","Мунципальное общеобразовательное учереждение Гимназия №22 г. Нижнекамск РеспубликиТатарстан"]
[52,15561004032,{"$f":"[4]Лист1!C5","v":"Лаврентьев"},{"$f":"[4]Лист1!D5","v":"Матвей"},{"$f":"[4]Лист1!E5","v":"Маратович"},{"$f":"[4]Лист1!F5","v":"м"},"18.05.2009","нет",8,8,{"$f":"[4]Лист1!K5","v":30},80,"участник",null,"Аменова Эльмира Зуфаровна","Мунципальное общеобразовательное учереждение Гимназия №22 г. Нижнекамск РеспубликиТатарстан"]
[53,16274163666,{"$f":"[4]Лист1!C6","v":"Мерясев"},{"$f":"[4]Лист1!D6","v":"Арсений"},{"$f":"[4]Лист1!E6","v":"Сергеевич"},{"$f":"[4]Лист1!F6","v":"ж"},"12.08.2009","нет",8,8,{"$f":"[4]Лист1!K6","v":24},80,"участник",null,"Аменова Эльмира Зуфаровна","Мунципальное общеобразовательное учереждение Гимназия №22 г. Нижнекамск РеспубликиТатарстан"]
[54,15819254894,{"$f":"[4]Лист1!C7","v":"Нагорнов"},{"$f":"[4]Лист1!D7","v":"Роман"},{"$f":"[4]Лист1!E7","v":"Александрович"},{"$f":"[4]Лист1!F7","v":"м"},"25.03.2009","нет",8,8,{"$f":"[4]Лист1!K7","v":24},80,"участник",null,"Аменова Эльмира Зуфаровна","Мунципальное общеобразовательное учереждение Гимназия №22 г. Нижнекамск РеспубликиТатарстан"]
[55,15581843793,{"$f":"[4]Лист1!C8","v":"Динмухаметов"},{"$f":"[4]Лист1!D8","v":"Роман"},{"$f":"[4]Лист1!E8","v":"Алексеевич"},{"$f":"[4]Лист1!F8","v":"м"},"14.08.2009","нет",8,8,{"$f":"[4]Лист1!K8","v":20},80,"участник",null,"Аменова Эльмира Зуфаровна","Мунципальное общеобразовательное учереждение Гимназия №22 г. Нижнекамск РеспубликиТатарстан"]
[56,"15604754566",{"$f":"[4]Лист1!C9","v":"Кротов"},{"$f":"[4]Лист1!D9","v":"Булат"},{"$f":"[4]Лист1!E9","v":"Николаевич"},{"$f":"[4]Лист1!F9","v":"м"},"09.06.2009","нет",8,8,{"$f":"[4]Лист1!K9","v":18},80,"участник",null,"Аменова Эльмира Зуфаровна","Мунципальное общеобразовательное учереждение Гимназия №22 г. Нижнекамск РеспубликиТатарстан"]
[57,15531482252,{"$f":"[4]Лист1!C10","v":"Бариев "},{"$f":"[4]Лист1!D10","v":"Дамир"},{"$f":"[4]Лист1!E10","v":"Русланович"},{"$f":"[4]Лист1!F10","v":"м"},"20.06.2009","нет",8,8,{"$f":"[4]Лист1!K10","v":18},80,"участник",null,"Аменова Эльмира Зуфаровна","Мунципальное общеобразовательное учереждение Гимназия №22 г. Нижнекамск РеспубликиТатарстан"]
[58,15425065849,{"$f":"[4]Лист1!C11","v":"Бурмистров"},{"$f":"[4]Лист1!D11","v":"Кирилл"},{"$f":"[4]Лист1!E11","v":"Евгеньевич"},{"$f":"[4]Лист1!F11","v":"м"},"17.01.2009","нет",8,8,{"$f":"[4]Лист1!K11","v":15},80,"участник",null,"Аменова Эльмира Зуфаровна","Мунципальное общеобразовательное учереждение Гимназия №22 г. Нижнекамск РеспубликиТатарстан"]
[59,17441531052,{"$f":"[4]Лист1!C12","v":"Гималтдинова"},{"$f":"[4]Лист1!D12","v":"Карина"},{"$f":"[4]Лист1!E12","v":"Ильфатовна"},{"$f":"[4]Лист1!F12","v":"ж"},"18.12.2008","нет",8,8,{"$f":"[4]Лист1!K12","v":15},80,"участник",null,"Аменова Эльмира Зуфаровна","Мунципальное общеобразовательное учереждение Гимназия №22 г. Нижнекамск РеспубликиТатарстан"]
[60,16688770034,{"$f":"[4]Лист1!C13","v":"Карпов "},{"$f":"[4]Лист1!D13","v":"Марк"},{"$f":"[4]Лист1!E13","v":"Александрович"},{"$f":"[4]Лист1!F13","v":"м"},"12.05.2009","нет",8,8,{"$f":"[4]Лист1!K13","v":15},80,"участник",null,"Аменова Эльмира Зуфаровна","Мунципальное общеобразовательное учереждение Гимназия №22 г. Нижнекамск РеспубликиТатарстан"]
[61,17417301754,{"$f":"[5]Лист1!C3","v":"Тарасова"},{"$f":"[5]Лист1!D3","v":"Илария"},{"$f":"[5]Лист1!E3","v":"Александровна"},"ж","17.01.2008","нет",9,9,{"$f":"[5]Лист1!K3","v":65},88,{"$f":"[5]Лист1!M3","v":"победитель"},null,{"$f":"[5]Лист1!O3","v":"Сайделова Фарсия Вазиховна"},"Мунципальное общеобразовательное учереждение Гимназия №22 г. Нижнекамск РеспубликиТатарстан"]
[62,17192689505,{"$f":"[5]Лист1!C4","v":"Алиева "},{"$f":"[5]Лист1!D4","v":"Камила"},{"$f":"[5]Лист1!E4","v":"Евгеньевна"},"ж","2008-04-20","нет",9,9,{"$f":"[5]Лист1!K4","v":42},88,{"$f":"[5]Лист1!M4","v":"участник"},null,{"$f":"[5]Лист1!O4","v":"Мухлисуллина Гульчачак Насимовна"},"Мунципальное общеобразовательное учереждение Гимназия №22 г. Нижнекамск РеспубликиТатарстан"]
[63,17738090300,{"$f":"[5]Лист1!C5","v":"Сергеев "},{"$f":"[5]Лист1!D5","v":"Артур"},{"$f":"[5]Лист1!E5","v":"Максимович"},"м","07.05.2008","нет",9,9,{"$f":"[5]Лист1!K5","v":41},88,{"$f":"[5]Лист1!M5","v":"участник"},null,{"$f":"[5]Лист1!O5","v":"Мухлисуллина Гульчачак Насимовна"},"Мунципальное общеобразовательное учереждение Гимназия №22 г. Нижнекамск РеспубликиТатарстан"]
[64,15456599505,{"$f":"[5]Лист1!C6","v":"Давлетбердина"},{"$f":"[5]Лист1!D6","v":"Сафия"},{"$f":"[5]Лист1!E6","v":"Андреевна"},"ж","02.08.2008","нет",9,9,{"$f":"[5]Лист1!K6","v":40.5},88,{"$f":"[5]Лист1!M6","v":"участник"},null,{"$f":"[5]Лист1!O6","v":"Сайделова Фарсия Вазиховна"},"Мунципальное общеобразовательное учереждение Гимназия №22 г. Нижнекамск РеспубликиТатарстан"]
[65,18569084827,{"$f":"[5]Лист1!C7","v":"Ломова "},{"$f":"[5]Лист1!D7","v":"Алина"},{"$f":"[5]Лист1!E7","v":"Артуровна"},"ж","28.02.2007","нет",9,9,{"$f":"[5]Лист1!K7","v":39},88,{"$f":"[5]Лист1!M7","v":"участник"},null,{"$f":"[5]Лист1!O7","v":"Мухлисуллина Гульчачак Насимовна"},"Мунципальное общеобразовательное учереждение Гимназия №22 г. Нижнекамск РеспубликиТатарстан"]
[66,17524175268,{"$f":"[5]Лист1!C8","v":"Исланкин"},{"$f":"[5]Лист1!D8","v":"Артём"},{"$f":"[5]Лист1!E8","v":"Александрович"},"м","20.03.2008","нет",9,9,{"$f":"[5]Лист1!K8","v":39},88,{"$f":"[5]Лист1!M8","v":"участник"},null,{"$f":"[5]Лист1!O8","v":"Сайделова Фарсия Вазиховна"},"Мунципальное общеобразовательное учереждение Гимназия №22 г. Нижнекамск РеспубликиТатарстан"]
[67,16634759602,{"$f":"[5]Лист1!C9","v":"Борисова"},{"$f":"[5]Лист1!D9","v":"Алёна"},{"$f":"[5]Лист1!E9","v":"Евгеньевна"},"ж","09.08.2008","нет",9,9,{"$f":"[5]Лист1!K9","v":35},88,{"$f":"[5]Лист1!M9","v":"участник"},null,{"$f":"[5]Лист1!O9","v":"Сайделова Фарсия Вазиховна"},"Мунципальное общеобразовательное учереждение Гимназия №22 г. Нижнекамск РеспубликиТатарстан"]
[68,17328037464,{"$f":"[5]Лист1!C10","v":"Биктулов"},{"$f":"[5]Лист1!D10","v":"Игорь"},{"$f":"[5]Лист1!E10","v":"Дмитриевич"},"м","30.01.2008","нет",9,9,{"$f":"[5]Лист1!K10","v":31.5},88,{"$f":"[5]Лист1!M10","v":"участник"},null,{"$f":"[5]Лист1!O10","v":"Сайделова Фарсия Вазиховна"},"Мунципальное общеобразовательное учереждение Гимназия №22 г. Нижнекамск РеспубликиТатарстан"]
[69,15417453862,{"$f":"[5]Лист1!C11","v":"Багаутдинова"},{"$f":"[5]Лист1!D11","v":"Дарина"},{"$f":"[5]Лист1!E11","v":"Ринатовна"},"ж","26.05.2008","нет",9,9,{"$f":"[5]Лист1!K11","v":28},88,{"$f":"[5]Лист1!M11","v":"участник"},null,{"$f":"[5]Лист1!O11","v":"Мухлисуллина Гульчачак Насимовна"},"Мунципальное общеобразовательное учереждение Гимназия №22 г. Нижнекамск РеспубликиТатарстан"]
[70,16395104674,{"$f":"[5]Лист1!C12","v":"Нурутдинова"},{"$f":"[5]Лист1!D12","v":"Сабина"},{"$f":"[5]Лист1!E12","v":"Альбертовна"},"ж","03.05.2008","нет",9,9,{"$f":"[5]Лист1!K12","v":26},88,{"$f":"[5]Лист1!M12","v":"участник"},null,{"$f":"[5]Лист1!O12","v":"Мухлисуллина Гульчачак Насимовна"},"Мунципальное общеобразовательное учереждение Гимназия №22 г. Нижнекамск РеспубликиТатарстан"]
[71,15774393205,"Халистова","Полина","Александровна","ж","21.02.2007","нет",10,10,74,82,"победитель",null,"Егорова Ландыш Масгутовна, Мухлисуллина  Гульчачак Насимовна","Мунципальное общеобразовательное учереждение Гимназия №22 г. Нижнекамск РеспубликиТатарстан"]
[72,"17340748166","Алексеев","Роман","Викторович","м","18.08.2012","нет",10,10,52,82,"участнк",null,"Егорова Ландыш Масгутовна","Мунципальное общеобразовательное учереждение Гимназия №22 г. Нижнекамск РеспубликиТатарстан"]
[73,15657115981,"Тюрин ","Ярослав ","Вадимович","м","2007-03-02","нет",10,10,51,82,"участнк",null,"Егорова Ландыш Масгутовна","Мунципальное общеобразовательное учереждение Гимназия №22 г. Нижнекамск РеспубликиТатарстан"]
[74,15790252078,"Журавлева","Валерия","Евгеньевна","ж","2007-06-08","нет",10,10,50,82,"участнк",null,"Егорова Ландыш Масгутовна","Мунципальное общеобразовательное учереждение Гимназия №22 г. Нижнекамск РеспубликиТатарстан"]
[75,15790252785,"Лебезина ","Анастасия","Александровна","ж","28.04.2007","нет",10,10,48,82,"участнк",null,"Егорова Ландыш Масгутовна","Мунципальное общеобразовательное учереждение Гимназия №22 г. Нижнекамск РеспубликиТатарстан"]
[76,15478900195,"Слезкин ","Игнат ","Максимович","м","19.03.2007","нет",10,10,48,82,"участнк",null,"Егорова Ландыш Масгутовна","Мунципальное общеобразовательное учереждение Гимназия №22 г. Нижнекамск РеспубликиТатарстан"]
[77,14710704637,"Маринин","Дмитрий","Олегович","м","23.06.2007","нет",10,10,29,82,"участнк",null,"Егорова Ландыш Масгутовна","Мунципальное общеобразовательное учереждение Гимназия №22 г. Нижнекамск РеспубликиТатарстан"]
[78,15790266796,"Перминова","Алиса","Денисовна","ж","2007-07-29","нет",10,10,29,82,"участнк",null,"Егорова Ландыш Масгутовна","Мунципальное общеобразовательное учереждение Гимназия №22 г. Нижнекамск РеспубликиТатарстан"]
[79,"14801019628","Новикова","Надежда ","Вадимовна","ж","2007-09-30","нет",10,10,25,82,"участнк",null,"Егорова Ландыш Масгутовна","Мунципальное общеобразовательное учереждение Гимназия №22 г. Нижнекамск РеспубликиТатарстан"]
[80,"15822438067","Юрочкина","Анастасия","Андреевна","ж","26.12.2006","нет",10,10,21,82,"участнк",null,"Егорова Ландыш Масгутовна","Мунципальное общеобразовательное учереждение Гимназия №22 г. Нижнекамск РеспубликиТатарстан"]